[Event "Live Chess"]
[Site "Chess.com"]
[Date "2010.12.02"]
[Round "-"]
[White "hipposcottimus"]
[Black "Pasachhe"]
[Result "1-0"]
[CurrentPosition "6k1/8/p4p2/6p1/8/3q2P1/P4PRK/2qr4 b - -"]
[Timezone "UTC"]
[ECO "C41"]
[ECOUrl "https://www.chess.com/openings/Philidor-Defense-3.Bc4-Be7-4.d4"]
[UTCDate "2010.12.02"]
[UTCTime "01:53:15"]
[WhiteElo "1697"]
[BlackElo "1583"]
[TimeControl "60"]
[Termination "hipposcottimus won on time"]
[StartTime "01:53:15"]
[EndDate "2010.12.02"]
[EndTime "01:55:36"]
[Link "https://www.chess.com/game/live/73173868"]

1. e4 {[%clk 0:01:00]} 1... e5 {[%clk 0:01:00]} 2. Nf3 {[%clk 0:00:58.4]} 2... d6 {[%clk 0:01:00]} 3. Bc4 {[%clk 0:00:58.1]} 3... Be7 {[%clk 0:00:59.4]} 4. d4 {[%clk 0:00:57.8]} 4... h6 {[%clk 0:00:58.8]} 5. dxe5 {[%clk 0:00:57]} 5... dxe5 {[%clk 0:00:58.1]} 6. Nc3 {[%clk 0:00:56]} 6... Bf6 {[%clk 0:00:58.1]} 7. Nd5 {[%clk 0:00:52.9]} 7... Nd7 {[%clk 0:00:54]} 8. O-O {[%clk 0:00:48.9]} 8... Ne7 {[%clk 0:00:51.2]} 9. b3 {[%clk 0:00:48.4]} 9... Nxd5 {[%clk 0:00:50.4]} 10. Bxd5 {[%clk 0:00:48]} 10... c6 {[%clk 0:00:49.9]} 11. Bc4 {[%clk 0:00:45.5]} 11... O-O {[%clk 0:00:48]} 12. Bd3 {[%clk 0:00:45.1]} 12... Nc5 {[%clk 0:00:46.6]} 13. Bb2 {[%clk 0:00:44.9]} 13... Nxd3 {[%clk 0:00:45.5]} 14. cxd3 {[%clk 0:00:43.9]} 14... Bg4 {[%clk 0:00:43.6]} 15. Qe2 {[%clk 0:00:41.3]} 15... Bxf3 {[%clk 0:00:42.8]} 16. Qxf3 {[%clk 0:00:41]} 16... Be7 {[%clk 0:00:41.6]} 17. Bxe5 {[%clk 0:00:38]} 17... f6 {[%clk 0:00:39.9]} 18. Bf4 {[%clk 0:00:35.7]} 18... Bd6 {[%clk 0:00:38.7]} 19. Qg3 {[%clk 0:00:34.9]} 19... Bxf4 {[%clk 0:00:37.7]} 20. Qxf4 {[%clk 0:00:34.6]} 20... Qe7 {[%clk 0:00:36.6]} 21. Rae1 {[%clk 0:00:33.4]} 21... Rad8 {[%clk 0:00:35]} 22. Re3 {[%clk 0:00:32.3]} 22... Qd7 {[%clk 0:00:33.2]} 23. Rd1 {[%clk 0:00:31]} 23... Qe7 {[%clk 0:00:30.5]} 24. Rg3 {[%clk 0:00:29.7]} 24... g5 {[%clk 0:00:27.8]} 25. Qh4 {[%clk 0:00:26.8]} 25... Qg7 {[%clk 0:00:26]} 26. Qg4 {[%clk 0:00:25.5]} 26... Rd7 {[%clk 0:00:24.8]} 27. h4 {[%clk 0:00:24.5]} 27... Rfd8 {[%clk 0:00:23.9]} 28. hxg5 {[%clk 0:00:22.9]} 28... hxg5 {[%clk 0:00:23.2]} 29. Rh3 {[%clk 0:00:21.7]} 29... b6 {[%clk 0:00:16.8]} 30. Qf5 {[%clk 0:00:20.6]} 30... a6 {[%clk 0:00:13.9]} 31. Rf3 {[%clk 0:00:20.2]} 31... Rd6 {[%clk 0:00:12.3]} 32. Qg4 {[%clk 0:00:17.9]} 32... c5 {[%clk 0:00:11.8]} 33. Rf5 {[%clk 0:00:17.4]} 33... b5 {[%clk 0:00:10.9]} 34. Rd2 {[%clk 0:00:16.6]} 34... c4 {[%clk 0:00:10.1]} 35. bxc4 {[%clk 0:00:16.1]} 35... bxc4 {[%clk 0:00:09.2]} 36. Rd1 {[%clk 0:00:15.2]} 36... c3 {[%clk 0:00:07.8]} 37. Rd5 {[%clk 0:00:14.1]} 37... Rxd5 {[%clk 0:00:06.4]} 38. exd5 {[%clk 0:00:13.7]} 38... Rxd5 {[%clk 0:00:06]} 39. Qf3 {[%clk 0:00:11.6]} 39... Qd7 {[%clk 0:00:04.8]} 40. Rc1 {[%clk 0:00:10]} 40... Rxd3 {[%clk 0:00:03.6]} 41. Qf5 {[%clk 0:00:06.9]} 41... Qxf5 {[%clk 0:00:01.9]} 42. Rf1 {[%clk 0:00:05.7]} 42... Rd1 {[%clk 0:00:01.9]} 43. Kh2 {[%clk 0:00:05.1]} 43... Qc2 {[%clk 0:00:01.9]} 44. Rh1 {[%clk 0:00:03.6]} 44... Qd3 {[%clk 0:00:01.9]} 45. g3 {[%clk 0:00:02.3]} 45... c2 {[%clk 0:00:01.9]} 46. Rg1 {[%clk 0:00:01.5]} 46... c1=Q {[%clk 0:00:01.6]} 47. Rg2 {[%clk 0:00:01]} 1-0

[Event "Live Chess"]
[Site "Chess.com"]
[Date "2010.12.02"]
[Round "-"]
[White "hipposcottimus"]
[Black "cool1000"]
[Result "1-0"]
[CurrentPosition "r4r2/pp1Qk1p1/n1p4p/8/N1b1P1N1/1P6/P1P3PP/R2R3K b - -"]
[Timezone "UTC"]
[ECO "C40"]
[ECOUrl "https://www.chess.com/openings/Kings-Pawn-Opening-Kings-Knight-Busch-Gass-Gambit"]
[UTCDate "2010.12.02"]
[UTCTime "01:50:45"]
[WhiteElo "1691"]
[BlackElo "1508"]
[TimeControl "60"]
[Termination "hipposcottimus won by checkmate"]
[StartTime "01:50:45"]
[EndDate "2010.12.02"]
[EndTime "01:52:34"]
[Link "https://www.chess.com/game/live/73173328"]

1. e4 {[%clk 0:01:00]} 1... e5 {[%clk 0:01:00]} 2. Nf3 {[%clk 0:00:59.7]} 2... Bc5 {[%clk 0:00:59.7]} 3. Bc4 {[%clk 0:00:59.4]} 3... Bxf2+ {[%clk 0:00:59.7]} 4. Kxf2 {[%clk 0:00:59]} 4... d6 {[%clk 0:00:59.7]} 5. Rf1 {[%clk 0:00:58.4]} 5... c6 {[%clk 0:00:59.7]} 6. Kg1 {[%clk 0:00:58.1]} 6... Nf6 {[%clk 0:00:59.7]} 7. Kh1 {[%clk 0:00:56.8]} 7... Ng4 {[%clk 0:00:58.7]} 8. d4 {[%clk 0:00:52.7]} 8... Qf6 {[%clk 0:00:54.3]} 9. dxe5 {[%clk 0:00:51.3]} 9... dxe5 {[%clk 0:00:52]} 10. Bg5 {[%clk 0:00:48.1]} 10... Qg6 {[%clk 0:00:44.6]} 11. Qd2 {[%clk 0:00:36.5]} 11... h6 {[%clk 0:00:42.5]} 12. Rd1 {[%clk 0:00:35.6]} 12... Qxg5 {[%clk 0:00:40.2]} 13. Nxg5 {[%clk 0:00:32.9]} 13... Ke7 {[%clk 0:00:34.6]} 14. Nxf7 {[%clk 0:00:25.2]} 14... Rf8 {[%clk 0:00:29.5]} 15. Nc3 {[%clk 0:00:22.1]} 15... Be6 {[%clk 0:00:28.5]} 16. Nxe5 {[%clk 0:00:12.7]} 16... Bxc4 {[%clk 0:00:25.9]} 17. Nxg4 {[%clk 0:00:11.4]} 17... Na6 {[%clk 0:00:21.4]} 18. Na4 {[%clk 0:00:08]} 18... Nb4 {[%clk 0:00:19.4]} 19. b3 {[%clk 0:00:07.6]} 19... Na6 {[%clk 0:00:14.8]} 20. Qd7# {[%clk 0:00:06.9]} 1-0

[Event "Live Chess"]
[Site "Chess.com"]
[Date "2010.12.02"]
[Round "-"]
[White "cool1000"]
[Black "hipposcottimus"]
[Result "1-0"]
[CurrentPosition "5bk1/8/7p/8/4PQ2/2P5/PP3PPP/R4RK1 w - -"]
[Timezone "UTC"]
[ECO "C24"]
[ECOUrl "https://www.chess.com/openings/Bishops-Opening-Berlin-Defense"]
[UTCDate "2010.12.02"]
[UTCTime "01:48:48"]
[WhiteElo "1512"]
[BlackElo "1687"]
[TimeControl "60"]
[Termination "cool1000 won by resignation"]
[StartTime "01:48:48"]
[EndDate "2010.12.02"]
[EndTime "01:50:15"]
[Link "https://www.chess.com/game/live/73172817"]

1. e4 {[%clk 0:01:00]} 1... e5 {[%clk 0:01:00]} 2. Bc4 {[%clk 0:01:00]} 2... Nf6 {[%clk 0:00:58.3]} 3. Bxf7+ {[%clk 0:01:00]} 3... Kxf7 {[%clk 0:00:56.6]} 4. d3 {[%clk 0:01:00]} 4... d6 {[%clk 0:00:56.3]} 5. c3 {[%clk 0:01:00]} 5... Be7 {[%clk 0:00:56]} 6. Nf3 {[%clk 0:01:00]} 6... Rf8 {[%clk 0:00:55.7]} 7. Qb3+ {[%clk 0:00:57.7]} 7... Be6 {[%clk 0:00:52.8]} 8. Ng5+ {[%clk 0:00:56.7]} 8... Kg8 {[%clk 0:00:42.8]} 9. Nxe6 {[%clk 0:00:56.7]} 9... Qe8 {[%clk 0:00:42.1]} 10. Nxf8+ {[%clk 0:00:53.7]} 10... Kh8 {[%clk 0:00:41.7]} 11. Qxb7 {[%clk 0:00:53.2]} 11... Qxf8 {[%clk 0:00:40.9]} 12. Qxa8 {[%clk 0:00:51.5]} 12... Kg8 {[%clk 0:00:40.1]} 13. Qxa7 {[%clk 0:00:49.3]} 13... d5 {[%clk 0:00:39.8]} 14. Qxc7 {[%clk 0:00:47.6]} 14... Ng4 {[%clk 0:00:39.3]} 15. O-O {[%clk 0:00:43.9]} 15... dxe4 {[%clk 0:00:37]} 16. dxe4 {[%clk 0:00:41.4]} 16... Nf6 {[%clk 0:00:36.5]} 17. Qxe5 {[%clk 0:00:39.2]} 17... Bd6 {[%clk 0:00:35.8]} 18. Qe6+ {[%clk 0:00:37.9]} 18... Kh8 {[%clk 0:00:34.1]} 19. Bg5 {[%clk 0:00:36.2]} 19... Be7 {[%clk 0:00:29.7]} 20. Bxf6 {[%clk 0:00:34.8]} 20... Bxf6 {[%clk 0:00:28]} 21. Nd2 {[%clk 0:00:34.8]} 21... Be7 {[%clk 0:00:22.9]} 22. Nf3 {[%clk 0:00:34.8]} 22... h6 {[%clk 0:00:22.2]} 23. Ne5 {[%clk 0:00:33.7]} 23... g6 {[%clk 0:00:21.5]} 24. Nxg6+ {[%clk 0:00:32.4]} 24... Kg7 {[%clk 0:00:20.4]} 25. Nxf8 {[%clk 0:00:32.4]} 25... Kxf8 {[%clk 0:00:20.2]} 26. Qc8+ {[%clk 0:00:30.7]} 26... Kf7 {[%clk 0:00:19.9]} 27. Qxb8 {[%clk 0:00:30.4]} 27... Bf8 {[%clk 0:00:19.4]} 28. Qf4+ {[%clk 0:00:29.7]} 28... Kg8 {[%clk 0:00:18.2]} 1-0

[Event "Live Chess"]
[Site "Chess.com"]
[Date "2010.12.02"]
[Round "-"]
[White "Vilenima"]
[Black "hipposcottimus"]
[Result "0-1"]
[CurrentPosition "1k5r/pp1B1ppp/3p1b2/3PpP2/1P2P1PP/2r3q1/7K/6NR w - -"]
[Timezone "UTC"]
[ECO "B00"]
[ECOUrl "https://www.chess.com/openings/Nimzowitsch-Defense-Kennedy-Variation"]
[UTCDate "2010.12.02"]
[UTCTime "01:43:12"]
[WhiteElo "1657"]
[BlackElo "1698"]
[TimeControl "60"]
[Termination "hipposcottimus won by checkmate"]
[StartTime "01:43:12"]
[EndDate "2010.12.02"]
[EndTime "01:44:54"]
[Link "https://www.chess.com/game/live/73171808"]

1. e4 {[%clk 0:01:00]} 1... e5 {[%clk 0:01:00]} 2. d4 {[%clk 0:00:59.2]} 2... Nc6 {[%clk 0:00:59.7]} 3. d5 {[%clk 0:00:58]} 3... Nce7 {[%clk 0:00:58.8]} 4. c4 {[%clk 0:00:57.2]} 4... d6 {[%clk 0:00:58.2]} 5. Nc3 {[%clk 0:00:56.4]} 5... c6 {[%clk 0:00:57.8]} 6. f4 {[%clk 0:00:54.8]} 6... cxd5 {[%clk 0:00:56.8]} 7. cxd5 {[%clk 0:00:53.7]} 7... Ng6 {[%clk 0:00:54.1]} 8. f5 {[%clk 0:00:52.4]} 8... Nf4 {[%clk 0:00:53.2]} 9. g3 {[%clk 0:00:51.1]} 9... Nh5 {[%clk 0:00:49.4]} 10. Qxh5 {[%clk 0:00:49.1]} 10... Nf6 {[%clk 0:00:47.9]} 11. Qd1 {[%clk 0:00:47.6]} 11... Be7 {[%clk 0:00:47.6]} 12. Bg5 {[%clk 0:00:45.5]} 12... Bd7 {[%clk 0:00:47.4]} 13. g4 {[%clk 0:00:44.3]} 13... Qa5 {[%clk 0:00:41.9]} 14. Bxf6 {[%clk 0:00:42.4]} 14... Bxf6 {[%clk 0:00:40.8]} 15. Qc2 {[%clk 0:00:38.4]} 15... O-O-O {[%clk 0:00:39.3]} 16. h4 {[%clk 0:00:37.1]} 16... Kb8 {[%clk 0:00:37.5]} 17. a3 {[%clk 0:00:34.7]} 17... Rc8 {[%clk 0:00:35.2]} 18. Qa4 {[%clk 0:00:32.5]} 18... Bxa4 {[%clk 0:00:32.7]} 19. b4 {[%clk 0:00:28.5]} 19... Qa6 {[%clk 0:00:27.3]} 20. Rc1 {[%clk 0:00:25]} 20... Bb5 {[%clk 0:00:22.3]} 21. Bxb5 {[%clk 0:00:22.7]} 21... Qxa3 {[%clk 0:00:21.7]} 22. Bd7 {[%clk 0:00:19.5]} 22... Qxc1+ {[%clk 0:00:20.4]} 23. Kf2 {[%clk 0:00:17.5]} 23... Rxc3 {[%clk 0:00:20.1]} 24. Kg2 {[%clk 0:00:14.7]} 24... Qe3 {[%clk 0:00:19]} 25. Kh2 {[%clk 0:00:13.3]} 25... Qg3# {[%clk 0:00:17.6]} 0-1

[Event "Live Chess"]
[Site "Chess.com"]
[Date "2010.12.02"]
[Round "-"]
[White "hipposcottimus"]
[Black "Vilenima"]
[Result "0-1"]
[CurrentPosition "8/5p2/2r1pkp1/7p/8/3R2PK/7r/6b1 w - -"]
[Timezone "UTC"]
[ECO "B30"]
[ECOUrl "https://www.chess.com/openings/Sicilian-Defense-Nyezhmetdinov-Rossolimo-Attack-3...a6-4.Bxc6-bxc6"]
[UTCDate "2010.12.02"]
[UTCTime "01:41:01"]
[WhiteElo "1691"]
[BlackElo "1664"]
[TimeControl "60"]
[Termination "Vilenima won by checkmate"]
[StartTime "01:41:01"]
[EndDate "2010.12.02"]
[EndTime "01:42:58"]
[Link "https://www.chess.com/game/live/73171331"]

1. e4 {[%clk 0:01:00]} 1... c5 {[%clk 0:01:00]} 2. Nf3 {[%clk 0:00:59.4]} 2... Nc6 {[%clk 0:01:00]} 3. Bb5 {[%clk 0:00:59.1]} 3... a6 {[%clk 0:00:58.5]} 4. Bxc6 {[%clk 0:00:58.5]} 4... bxc6 {[%clk 0:00:58.5]} 5. c4 {[%clk 0:00:57.1]} 5... Nf6 {[%clk 0:00:57.4]} 6. d3 {[%clk 0:00:56.6]} 6... d5 {[%clk 0:00:56]} 7. Nc3 {[%clk 0:00:56.3]} 7... dxc4 {[%clk 0:00:54.6]} 8. b3 {[%clk 0:00:55.9]} 8... Qxd3 {[%clk 0:00:48.7]} 9. bxc4 {[%clk 0:00:53.1]} 9... Qxd1+ {[%clk 0:00:46.5]} 10. Nxd1 {[%clk 0:00:52.8]} 10... Nxe4 {[%clk 0:00:44.7]} 11. O-O {[%clk 0:00:52.6]} 11... Bg4 {[%clk 0:00:42.6]} 12. Ne5 {[%clk 0:00:49.1]} 12... Bxd1 {[%clk 0:00:38.3]} 13. Rxd1 {[%clk 0:00:48.9]} 13... Nc3 {[%clk 0:00:36.7]} 14. Nxc6 {[%clk 0:00:48.6]} 14... Nxd1 {[%clk 0:00:35]} 15. Ba3 {[%clk 0:00:47.7]} 15... Nc3 {[%clk 0:00:33.7]} 16. Bxc5 {[%clk 0:00:45.9]} 16... Rc8 {[%clk 0:00:31.8]} 17. Rc1 {[%clk 0:00:41.6]} 17... Rxc6 {[%clk 0:00:30.9]} 18. Rxc3 {[%clk 0:00:41.4]} 18... Rxc5 {[%clk 0:00:30.1]} 19. Rb3 {[%clk 0:00:41]} 19... e6 {[%clk 0:00:28.4]} 20. Rb8+ {[%clk 0:00:40.6]} 20... Ke7 {[%clk 0:00:27.6]} 21. a4 {[%clk 0:00:39.3]} 21... Kf6 {[%clk 0:00:25.1]} 22. Rb6 {[%clk 0:00:38.3]} 22... g6 {[%clk 0:00:23.7]} 23. Rxa6 {[%clk 0:00:37.6]} 23... Be7 {[%clk 0:00:21.4]} 24. g3 {[%clk 0:00:36.7]} 24... Rhc8 {[%clk 0:00:19.7]} 25. a5 {[%clk 0:00:35.7]} 25... Rxc4 {[%clk 0:00:18.6]} 26. Kg2 {[%clk 0:00:35.3]} 26... R8c6 {[%clk 0:00:17.2]} 27. Ra7 {[%clk 0:00:33.2]} 27... Bb4 {[%clk 0:00:16]} 28. a6 {[%clk 0:00:32.2]} 28... Bc5 {[%clk 0:00:14.2]} 29. Ra8 {[%clk 0:00:31]} 29... Ra4 {[%clk 0:00:11.8]} 30. Rh8 {[%clk 0:00:24.6]} 30... h5 {[%clk 0:00:09.7]} 31. Rh7 {[%clk 0:00:23.5]} 31... Raxa6 {[%clk 0:00:07.4]} 32. Rh8 {[%clk 0:00:23.2]} 32... Ra2 {[%clk 0:00:06]} 33. Rd8 {[%clk 0:00:22.9]} 33... Bxf2 {[%clk 0:00:04.3]} 34. Kh3 {[%clk 0:00:21.8]} 34... Bg1 {[%clk 0:00:03]} 35. Rd3 {[%clk 0:00:19.5]} 35... Rxh2# {[%clk 0:00:01]} 0-1

[Event "Live Chess"]
[Site "Chess.com"]
[Date "2010.12.02"]
[Round "-"]
[White "hipposcottimus"]
[Black "sfochris2008"]
[Result "1-0"]
[CurrentPosition "r5k1/p6q/1p1p1Rpp/2p4n/6QN/8/P5PP/4R1K1 b - -"]
[Timezone "UTC"]
[ECO "C51"]
[ECOUrl "https://www.chess.com/openings/Giuoco-Piano-Game-Evans-Accepted-McDonnell-Defense-6.O-O-d6-7.d4-exd4"]
[UTCDate "2010.12.02"]
[UTCTime "01:36:49"]
[WhiteElo "1700"]
[BlackElo "1590"]
[TimeControl "60"]
[Termination "hipposcottimus won on time"]
[StartTime "01:36:49"]
[EndDate "2010.12.02"]
[EndTime "01:39:00"]
[Link "https://www.chess.com/game/live/73170431"]

1. e4 {[%clk 0:01:00]} 1... e5 {[%clk 0:01:00]} 2. Nf3 {[%clk 0:00:59.6]} 2... Nc6 {[%clk 0:00:59.2]} 3. Bc4 {[%clk 0:00:58.5]} 3... Bc5 {[%clk 0:00:58.1]} 4. b4 {[%clk 0:00:57.2]} 4... Bxb4 {[%clk 0:00:56]} 5. c3 {[%clk 0:00:57]} 5... Bc5 {[%clk 0:00:55.5]} 6. O-O {[%clk 0:00:56.7]} 6... d6 {[%clk 0:00:53.6]} 7. d4 {[%clk 0:00:56.4]} 7... exd4 {[%clk 0:00:52.6]} 8. cxd4 {[%clk 0:00:56]} 8... Bb4 {[%clk 0:00:52.3]} 9. Nc3 {[%clk 0:00:54.8]} 9... Bxc3 {[%clk 0:00:50.2]} 10. Rb1 {[%clk 0:00:54.6]} 10... Nge7 {[%clk 0:00:46.8]} 11. Bd2 {[%clk 0:00:53.5]} 11... Bxd2 {[%clk 0:00:45.7]} 12. Qxd2 {[%clk 0:00:53.2]} 12... O-O {[%clk 0:00:44.9]} 13. Qc3 {[%clk 0:00:52.9]} 13... Be6 {[%clk 0:00:42.4]} 14. d5 {[%clk 0:00:52.2]} 14... Bxd5 {[%clk 0:00:35.2]} 15. exd5 {[%clk 0:00:49.1]} 15... Ne5 {[%clk 0:00:34.1]} 16. Bd3 {[%clk 0:00:42.9]} 16... Nxd3 {[%clk 0:00:32.7]} 17. Qxd3 {[%clk 0:00:41.4]} 17... Qd7 {[%clk 0:00:30.8]} 18. Ng5 {[%clk 0:00:40.3]} 18... Qf5 {[%clk 0:00:28.7]} 19. Qg3 {[%clk 0:00:37.9]} 19... h6 {[%clk 0:00:23.7]} 20. Rbe1 {[%clk 0:00:32]} 20... Nxd5 {[%clk 0:00:18.7]} 21. Nf3 {[%clk 0:00:17.1]} 21... Nf6 {[%clk 0:00:16]} 22. Nd4 {[%clk 0:00:15.9]} 22... Qh7 {[%clk 0:00:13.8]} 23. f4 {[%clk 0:00:13.3]} 23... c5 {[%clk 0:00:12.2]} 24. Nf3 {[%clk 0:00:11.8]} 24... b6 {[%clk 0:00:10.7]} 25. f5 {[%clk 0:00:10.8]} 25... Nh5 {[%clk 0:00:06.9]} 26. Qg4 {[%clk 0:00:09.4]} 26... g6 {[%clk 0:00:05.3]} 27. fxg6 {[%clk 0:00:07.3]} 27... fxg6 {[%clk 0:00:04.9]} 28. Nh4 {[%clk 0:00:05.9]} 28... Rf6 {[%clk 0:00:00.6]} 29. Rxf6 {[%clk 0:00:03.3]} 1-0

[Event "Live Chess"]
[Site "Chess.com"]
[Date "2010.12.02"]
[Round "-"]
[White "metri"]
[Black "hipposcottimus"]
[Result "1-0"]
[CurrentPosition "8/4R3/6p1/6pk/3Q4/8/PPP2PPP/6K1 w - -"]
[Timezone "UTC"]
[ECO "C45"]
[ECOUrl "https://www.chess.com/openings/Scotch-Game"]
[UTCDate "2010.12.02"]
[UTCTime "01:34:32"]
[WhiteElo "1697"]
[BlackElo "1694"]
[TimeControl "60"]
[Termination "metri won by resignation"]
[StartTime "01:34:32"]
[EndDate "2010.12.02"]
[EndTime "01:36:07"]
[Link "https://www.chess.com/game/live/73169975"]

1. e4 {[%clk 0:01:00]} 1... e5 {[%clk 0:01:00]} 2. Nf3 {[%clk 0:00:59.6]} 2... Nc6 {[%clk 0:00:59.6]} 3. d4 {[%clk 0:00:59.2]} 3... Nf6 {[%clk 0:00:58.7]} 4. dxe5 {[%clk 0:00:58.1]} 4... Nxe4 {[%clk 0:00:57.2]} 5. Bd3 {[%clk 0:00:54.8]} 5... d5 {[%clk 0:00:55.1]} 6. exd6 {[%clk 0:00:53.3]} 6... Nxd6 {[%clk 0:00:54.7]} 7. Qe2+ {[%clk 0:00:51.7]} 7... Be6 {[%clk 0:00:54.2]} 8. O-O {[%clk 0:00:46.3]} 8... Be7 {[%clk 0:00:53.8]} 9. Nc3 {[%clk 0:00:44.4]} 9... O-O {[%clk 0:00:53.5]} 10. Bf4 {[%clk 0:00:43.2]} 10... Bf6 {[%clk 0:00:53.2]} 11. Rad1 {[%clk 0:00:39.8]} 11... Nd4 {[%clk 0:00:51.8]} 12. Nxd4 {[%clk 0:00:38]} 12... Bxd4 {[%clk 0:00:51.2]} 13. Be3 {[%clk 0:00:37.2]} 13... Bf6 {[%clk 0:00:49.5]} 14. Bc5 {[%clk 0:00:35]} 14... Re8 {[%clk 0:00:48.3]} 15. Bxd6 {[%clk 0:00:34.2]} 15... Qxd6 {[%clk 0:00:48]} 16. Bxh7+ {[%clk 0:00:32.7]} 16... Kxh7 {[%clk 0:00:45.1]} 17. Rxd6 {[%clk 0:00:32.1]} 17... cxd6 {[%clk 0:00:43.5]} 18. Qd3+ {[%clk 0:00:30.5]} 18... Kg8 {[%clk 0:00:43.2]} 19. Qxd6 {[%clk 0:00:29.3]} 19... Rad8 {[%clk 0:00:41.9]} 20. Qc7 {[%clk 0:00:27.3]} 20... Bd5 {[%clk 0:00:41.6]} 21. Nxd5 {[%clk 0:00:25.2]} 21... Be5 {[%clk 0:00:41.2]} 22. Ne7+ {[%clk 0:00:17.7]} 22... Kh8 {[%clk 0:00:38.7]} 23. Qxe5 {[%clk 0:00:17.3]} 23... Rd7 {[%clk 0:00:36.8]} 24. Ng6+ {[%clk 0:00:16.5]} 24... fxg6 {[%clk 0:00:34.2]} 25. Qxe8+ {[%clk 0:00:16.1]} 25... Kh7 {[%clk 0:00:33.1]} 26. Qxd7 {[%clk 0:00:15.7]} 26... Kh6 {[%clk 0:00:32.8]} 27. Qxb7 {[%clk 0:00:15]} 27... g5 {[%clk 0:00:32.5]} 28. Qxa7 {[%clk 0:00:14.6]} 28... g6 {[%clk 0:00:31.3]} 29. Re1 {[%clk 0:00:13.9]} 29... Kh5 {[%clk 0:00:31]} 30. Re7 {[%clk 0:00:13]} 30... Kg4 {[%clk 0:00:30.7]} 31. Qd4+ {[%clk 0:00:10.8]} 31... Kh5 {[%clk 0:00:30]} 1-0

[Event "Live Chess"]
[Site "Chess.com"]
[Date "2010.12.02"]
[Round "-"]
[White "hipposcottimus"]
[Black "metri"]
[Result "1-0"]
[CurrentPosition "1k2r3/pp1r3p/2p2pp1/8/2P5/1P1P4/P5KP/6R1 b - -"]
[Timezone "UTC"]
[ECO "B30"]
[ECOUrl "https://www.chess.com/openings/Sicilian-Defense-Nyezhmetdinov-Rossolimo-Attack-3...Nf6-4.Bxc6-dxc6"]
[UTCDate "2010.12.02"]
[UTCTime "01:32:22"]
[WhiteElo "1702"]
[BlackElo "1689"]
[TimeControl "60"]
[Termination "hipposcottimus won on time"]
[StartTime "01:32:22"]
[EndDate "2010.12.02"]
[EndTime "01:34:16"]
[Link "https://www.chess.com/game/live/73169530"]

1. e4 {[%clk 0:01:00]} 1... c5 {[%clk 0:01:00]} 2. Nf3 {[%clk 0:00:59.7]} 2... Nc6 {[%clk 0:00:59.6]} 3. Bb5 {[%clk 0:00:59.4]} 3... Nf6 {[%clk 0:00:58.1]} 4. Bxc6 {[%clk 0:00:59.1]} 4... dxc6 {[%clk 0:00:56.6]} 5. e5 {[%clk 0:00:58.8]} 5... Nd5 {[%clk 0:00:56]} 6. d3 {[%clk 0:00:58.5]} 6... Qc7 {[%clk 0:00:55.4]} 7. c4 {[%clk 0:00:58.2]} 7... Nb4 {[%clk 0:00:52.7]} 8. Nc3 {[%clk 0:00:57.6]} 8... Bg4 {[%clk 0:00:51.1]} 9. Be3 {[%clk 0:00:57.3]} 9... Bxf3 {[%clk 0:00:50.1]} 10. Qxf3 {[%clk 0:00:57]} 10... Qxe5 {[%clk 0:00:48.9]} 11. O-O {[%clk 0:00:56.3]} 11... Nc2 {[%clk 0:00:48.1]} 12. Bf4 {[%clk 0:00:48.5]} 12... Qf6 {[%clk 0:00:41]} 13. Rac1 {[%clk 0:00:48.1]} 13... Nd4 {[%clk 0:00:39.9]} 14. Qe4 {[%clk 0:00:46.5]} 14... g6 {[%clk 0:00:34.4]} 15. Rce1 {[%clk 0:00:45.6]} 15... Bg7 {[%clk 0:00:33.5]} 16. Be5 {[%clk 0:00:44]} 16... Qe6 {[%clk 0:00:29.6]} 17. Bxg7 {[%clk 0:00:42.7]} 17... Rg8 {[%clk 0:00:24.7]} 18. Be5 {[%clk 0:00:38.4]} 18... O-O-O {[%clk 0:00:21.8]} 19. Qf4 {[%clk 0:00:36.1]} 19... f6 {[%clk 0:00:14.7]} 20. Bb8 {[%clk 0:00:34.8]} 20... Qd7 {[%clk 0:00:14.1]} 21. Na4 {[%clk 0:00:32.2]} 21... e5 {[%clk 0:00:13]} 22. Nxc5 {[%clk 0:00:30.6]} 22... exf4 {[%clk 0:00:11.7]} 23. Nxd7 {[%clk 0:00:30.1]} 23... Rxd7 {[%clk 0:00:10.9]} 24. Re4 {[%clk 0:00:27.9]} 24... Kxb8 {[%clk 0:00:09.5]} 25. Rfe1 {[%clk 0:00:25.9]} 25... f3 {[%clk 0:00:07.7]} 26. b3 {[%clk 0:00:25.4]} 26... fxg2 {[%clk 0:00:06]} 27. f3 {[%clk 0:00:24.8]} 27... Nxf3+ {[%clk 0:00:05]} 28. Kf2 {[%clk 0:00:23.8]} 28... Nxe1 {[%clk 0:00:04.5]} 29. Rxe1 {[%clk 0:00:22.8]} 29... Rf8 {[%clk 0:00:01.4]} 30. Rg1 {[%clk 0:00:21.9]} 30... Re8 {[%clk 0:00:00.2]} 31. Kxg2 {[%clk 0:00:21.6]} 1-0